[Event "Titled Tuesday Blitz July 26 Late 2022"]
[White "Andreikin, Dmitry"]
[Black "Yoo, Christopher Woojin"]
[WhiteFideId "4158814"]
[BlackFideId "30909694"]
[WhiteElo "2736"]
[BlackElo "2105"]
[Result "1-0"]
[Round "10"]
[TimeControl "180+1"]
[Date "2022.07.26"]
[WhiteClock "0:00:37"]
[BlackClock "0:00:01"]

1. d4 {[%clk 0:03:00]}  Nf6 {[%clk 0:02:59]} 2. c4 {[%clk 0:03:01]}  e6 {[%clk 0:03:00]} 3. Nf3 {[%clk 0:03:01]}  d5 {[%clk 0:03:00]} 4. g3 {[%clk 0:03:01]}  dxc4 {[%clk 0:02:59]} 5. Bg2 {[%clk 0:03:02]}  a6 {[%clk 0:03:00]} 6. O-O {[%clk 0:03:01]}  Nc6 {[%clk 0:03:01]} 7. Bg5 {[%clk 0:03:02]}  Be7 {[%clk 0:02:59]} 8. e3 {[%clk 0:03:02]}  Rb8 {[%clk 0:02:43]} 9. Qc1 {[%clk 0:03:01]}  h6 {[%clk 0:02:26]} 10. Bxf6 {[%clk 0:03:00]}  Bxf6 {[%clk 0:02:27]} 11. Qxc4 {[%clk 0:02:59]}  e5 {[%clk 0:02:24]} 12. d5 {[%clk 0:02:26]}  Ne7 {[%clk 0:02:21]} 13. Nc3 {[%clk 0:02:23]}  b5 {[%clk 0:01:57]} 14. Qb3 {[%clk 0:02:18]}  Bf5 {[%clk 0:01:51]} 15. Rfd1 {[%clk 0:02:14]}  O-O {[%clk 0:01:18]} 16. Rac1 {[%clk 0:02:14]}  Nc8 {[%clk 0:01:14]} 17. Nd2 {[%clk 0:02:07]}  Nd6 {[%clk 0:01:11]} 18. Nce4 {[%clk 0:02:07]}  Be7 {[%clk 0:01:07]} 19. Qc3 {[%clk 0:02:00]}  Nxe4 {[%clk 0:01:05]} 20. Bxe4 {[%clk 0:01:58]}  Bxe4 {[%clk 0:01:00]} 21. Nxe4 {[%clk 0:01:59]}  Bd6 {[%clk 0:00:57]} 22. Qa5 {[%clk 0:01:55]}  f5 {[%clk 0:00:40]} 23. Nxd6 {[%clk 0:01:48]}  cxd6 {[%clk 0:00:40]} 24. Qxd8 {[%clk 0:01:46]}  Rfxd8 {[%clk 0:00:38]} 25. Rc6 {[%clk 0:01:45]}  a5 {[%clk 0:00:39]} 26. Rdc1 {[%clk 0:01:39]}  b4 {[%clk 0:00:39]} 27. Ra6 {[%clk 0:01:40]}  Rbc8 {[%clk 0:00:37]} 28. Rxc8 {[%clk 0:01:23]}  Rxc8 {[%clk 0:00:38]} 29. Rxa5 {[%clk 0:01:22]}  Rc2 {[%clk 0:00:33]} 30. b3 {[%clk 0:01:18]}  Kf7 {[%clk 0:00:29]} 31. h4 {[%clk 0:01:14]}  e4 {[%clk 0:00:20]} 32. Ra7+ {[%clk 0:01:07]}  Kf6 {[%clk 0:00:20]} 33. Rd7 {[%clk 0:01:07]}  Ke5 {[%clk 0:00:19]} 34. Rxg7 {[%clk 0:01:07]}  Rxa2 {[%clk 0:00:20]} 35. Rb7 {[%clk 0:01:06]}  Rb2 {[%clk 0:00:20]} 36. Rxb4 {[%clk 0:01:05]}  Kxd5 {[%clk 0:00:20]} 37. Rb5+ {[%clk 0:00:59]}  Ke6 {[%clk 0:00:20]} 38. b4 {[%clk 0:01:00]}  h5 {[%clk 0:00:19]} 39. Rb8 {[%clk 0:00:59]}  d5 {[%clk 0:00:09]} 40. b5 {[%clk 0:00:57]}  Kf7 {[%clk 0:00:03]} 41. b6 {[%clk 0:00:53]}  Kg7 {[%clk 0:00:03]} 42. Kf1 {[%clk 0:00:52]}  Rb1+ {[%clk 0:00:03]} 43. Ke2 {[%clk 0:00:51]}  Rb2+ {[%clk 0:00:04]} 44. Ke1 {[%clk 0:00:52]}  Rb1+ {[%clk 0:00:04]} 45. Kd2 {[%clk 0:00:50]}  Rb3 {[%clk 0:00:04]} 46. Kc2 {[%clk 0:00:49]}  Rb4 {[%clk 0:00:05]} 47. Kc3 {[%clk 0:00:49]}  Rc4+ {[%clk 0:00:05]} 48. Kb3 {[%clk 0:00:49]}  Rc1 {[%clk 0:00:06]} 49. Kb4 {[%clk 0:00:47]}  Rc2 {[%clk 0:00:02]} 50. b7 {[%clk 0:00:43]}  Rxf2 {[%clk 0:00:03]} 51. Rg8+ {[%clk 0:00:41]}  Kxg8 {[%clk 0:00:02]} 52. b8=Q+ {[%clk 0:00:42]}  Kf7 {[%clk 0:00:02]} 53. Kc5 {[%clk 0:00:39]}  Rf3 {[%clk 0:00:01]} 54. Kxd5 {[%clk 0:00:37]}  Rf1 {[%clk 0:00:01]} 55. Ke5 {[%clk 0:00:37]} 1-0


[Site "https://www.chess.com"]

[Event "Titled Tuesday Blitz July 26 Late 2022"]
[White "Arnold, Ken"]
[Black "Capp, Stephen"]
[WhiteFideId "2056836"]
[BlackFideId "2027089"]
[WhiteElo "2267"]
[BlackElo "2216"]
[Result "1-0"]
[Round "10"]
[TimeControl "180+1"]
[Date "2022.07.27"]
[WhiteClock "0:00:24"]
[BlackClock "0:00:01"]

1. d4 {[%clk 0:03:00]}  Nf6 {[%clk 0:02:59]} 2. c4 {[%clk 0:03:00]}  e6 {[%clk 0:02:59]} 3. Nf3 {[%clk 0:02:59]}  Bb4+ {[%clk 0:02:58]} 4. Bd2 {[%clk 0:02:59]}  Qe7 {[%clk 0:02:57]} 5. e3 {[%clk 0:02:58]}  Nc6 {[%clk 0:02:56]} 6. Bd3 {[%clk 0:02:56]}  Bxd2+ {[%clk 0:02:55]} 7. Qxd2 {[%clk 0:02:53]}  d6 {[%clk 0:02:56]} 8. Nc3 {[%clk 0:02:53]}  O-O {[%clk 0:02:55]} 9. O-O {[%clk 0:02:52]}  e5 {[%clk 0:02:55]} 10. Bc2 {[%clk 0:02:44]}  h6 {[%clk 0:02:48]} 11. Rfd1 {[%clk 0:02:37]}  Bg4 {[%clk 0:02:44]} 12. h3 {[%clk 0:02:30]}  Bxf3 {[%clk 0:02:42]} 13. gxf3 {[%clk 0:02:29]}  exd4 {[%clk 0:02:34]} 14. exd4 {[%clk 0:02:22]}  Qd7 {[%clk 0:02:31]} 15. Kh2 {[%clk 0:02:14]}  Ne7 {[%clk 0:02:26]} 16. Rg1 {[%clk 0:02:09]}  Ng6 {[%clk 0:02:22]} 17. Bxg6 {[%clk 0:02:01]}  fxg6 {[%clk 0:02:22]} 18. Rxg6 {[%clk 0:02:00]}  Qf5 {[%clk 0:02:17]} 19. Qxh6 {[%clk 0:01:43]}  Nh5 {[%clk 0:01:59]} 20. Rag1 {[%clk 0:01:37]}  Qf4+ {[%clk 0:01:09]} 21. Qxf4 {[%clk 0:01:36]}  Rxf4 {[%clk 0:01:08]} 22. R6g5 {[%clk 0:01:31]}  Rh4 {[%clk 0:00:44]} 23. Nd5 {[%clk 0:01:26]}  Rf8 {[%clk 0:00:40]} 24. R1g4 {[%clk 0:01:17]}  Rxg4 {[%clk 0:00:37]} 25. hxg4 {[%clk 0:01:11]}  Nf4 {[%clk 0:00:29]} 26. Nxc7 {[%clk 0:01:02]}  Ne2 {[%clk 0:00:27]} 27. Ne6 {[%clk 0:00:57]}  Rxf3 {[%clk 0:00:22]} 28. Kg2 {[%clk 0:00:49]}  Rf7 {[%clk 0:00:19]} 29. c5 {[%clk 0:00:46]}  dxc5 {[%clk 0:00:19]} 30. Rxc5 {[%clk 0:00:44]}  Rd7 {[%clk 0:00:16]} 31. Rc8+ {[%clk 0:00:42]}  Kf7 {[%clk 0:00:14]} 32. Ng5+ {[%clk 0:00:33]}  Kg6 {[%clk 0:00:13]} 33. Nf3 {[%clk 0:00:34]}  Nxd4 {[%clk 0:00:12]} 34. Nxd4 {[%clk 0:00:34]}  Rxd4 {[%clk 0:00:13]} 35. Kg3 {[%clk 0:00:30]}  Rd2 {[%clk 0:00:12]} 36. b3 {[%clk 0:00:25]}  Rxa2 {[%clk 0:00:11]} 37. Rc7 {[%clk 0:00:25]}  b5 {[%clk 0:00:08]} 38. Rb7 {[%clk 0:00:24]}  Ra5 {[%clk 0:00:06]} 39. b4 {[%clk 0:00:24]}  Ra3+ {[%clk 0:00:05]} 40. f3 {[%clk 0:00:24]}  Ra1 {[%clk 0:00:04]} 41. Rxb5 {[%clk 0:00:24]}  Kf7 {[%clk 0:00:04]} 42. Ra5 {[%clk 0:00:24]}  Rxa5 {[%clk 0:00:01]} 43. bxa5 {[%clk 0:00:24]}  g5 {[%clk 0:00:02]} 44. f4 {[%clk 0:00:24]}  gxf4+ {[%clk 0:00:01]} 45. Kxf4 {[%clk 0:00:24]}  Kg6 {[%clk 0:00:01]} 46. a6 {[%clk 0:00:24]} 1-0


[Site "https://www.chess.com"]

[Event "Titled Tuesday Blitz July 26 Late 2022"]
[White "Baltaci, Ismail Tarik"]
[Black "Goncalves, Davi Sulzbacher"]
[WhiteFideId "6365213"]
[BlackFideId "2154510"]
[WhiteElo "2283"]
[BlackElo "2107"]
[Result "0-1"]
[Round "10"]
[TimeControl "180+1"]
[Date "2022.07.27"]
[WhiteClock "0:00:02"]
[BlackClock "0:00:45"]

1. e4 {[%clk 0:03:00]}  d5 {[%clk 0:02:58]} 2. exd5 {[%clk 0:02:59]}  Qxd5 {[%clk 0:02:59]} 3. Nc3 {[%clk 0:02:59]}  Qa5 {[%clk 0:02:58]} 4. d4 {[%clk 0:02:59]}  Nc6 {[%clk 0:02:57]} 5. d5 {[%clk 0:02:57]}  Ne5 {[%clk 0:02:56]} 6. Bf4 {[%clk 0:02:54]}  Ng6 {[%clk 0:02:53]} 7. Be3 {[%clk 0:02:50]}  Nf6 {[%clk 0:02:47]} 8. Bb5+ {[%clk 0:02:43]}  Bd7 {[%clk 0:02:47]} 9. a4 {[%clk 0:02:40]}  O-O-O {[%clk 0:02:38]} 10. Nf3 {[%clk 0:02:34]}  e6 {[%clk 0:02:21]} 11. O-O {[%clk 0:02:30]}  exd5 {[%clk 0:02:14]} 12. Bxd7+ {[%clk 0:02:12]}  Rxd7 {[%clk 0:02:13]} 13. Nb5 {[%clk 0:02:11]}  a6 {[%clk 0:02:11]} 14. Nbd4 {[%clk 0:02:09]}  c5 {[%clk 0:02:07]} 15. Nb3 {[%clk 0:02:01]}  Qc7 {[%clk 0:02:05]} 16. Re1 {[%clk 0:01:48]}  d4 {[%clk 0:02:05]} 17. Bg5 {[%clk 0:01:48]}  Be7 {[%clk 0:02:00]} 18. Nbd2 {[%clk 0:01:46]}  Nd5 {[%clk 0:01:55]} 19. Bxe7 {[%clk 0:01:45]}  Ndxe7 {[%clk 0:01:54]} 20. Nc4 {[%clk 0:01:44]}  Rhd8 {[%clk 0:01:52]} 21. a5 {[%clk 0:01:45]}  Kb8 {[%clk 0:01:51]} 22. Ra3 {[%clk 0:01:41]}  Nd5 {[%clk 0:01:42]} 23. Rb3 {[%clk 0:01:35]}  Ka7 {[%clk 0:01:35]} 24. Nb6 {[%clk 0:01:32]}  Rd6 {[%clk 0:01:31]} 25. Nc4 {[%clk 0:01:14]}  Rf6 {[%clk 0:01:26]} 26. Nfe5 {[%clk 0:01:09]}  Ngf4 {[%clk 0:01:22]} 27. Rg3 {[%clk 0:01:01]}  g6 {[%clk 0:01:18]} 28. Qg4 {[%clk 0:00:55]}  h5 {[%clk 0:01:16]} 29. Qg5 {[%clk 0:00:55]}  Rf5 {[%clk 0:01:16]} 30. Qh6 {[%clk 0:00:54]}  Re8 {[%clk 0:01:11]} 31. Qg7 {[%clk 0:00:53]}  Re6 {[%clk 0:01:04]} 32. Qg8 {[%clk 0:00:48]}  h4 {[%clk 0:00:57]} 33. Rb3 {[%clk 0:00:47]}  Rfxe5 {[%clk 0:00:49]} 34. Nxe5 {[%clk 0:00:30]}  Rxe5 {[%clk 0:00:50]} 35. Rxe5 {[%clk 0:00:19]}  Qxe5 {[%clk 0:00:48]} 36. Rxb7+ {[%clk 0:00:02]}  Kxb7 {[%clk 0:00:49]} 37. Qxf7+ {[%clk 0:00:03]}  Nc7 {[%clk 0:00:50]} 38. Qb3+ {[%clk 0:00:02]}  Kc6 {[%clk 0:00:45]} 39. Qb6+ {[%clk 0:00:02]}  Kd7 {[%clk 0:00:45]} 0-1


[Site "https://www.chess.com"]

[Event "Titled Tuesday Blitz July 26 Late 2022"]
[White "Barria Zuniga, Daniel"]
[Black "Pakleza, Zbigniew"]
[WhiteFideId "3400816"]
[BlackFideId "1119290"]
[WhiteElo "2414"]
[BlackElo "2467"]
[Result "0-1"]
[Round "10"]
[TimeControl "180+1"]
[Date "2022.07.26"]
[WhiteClock "0:00:02"]
[BlackClock "0:00:06"]

1. d4 {[%clk 0:03:00]}  d6 {[%clk 0:02:59]} 2. Nf3 {[%clk 0:02:59]}  Bg4 {[%clk 0:02:58]} 3. c4 {[%clk 0:02:55]}  c6 {[%clk 0:02:57]} 4. Nc3 {[%clk 0:02:54]}  Nd7 {[%clk 0:02:52]} 5. e4 {[%clk 0:02:47]}  e5 {[%clk 0:02:51]} 6. Be3 {[%clk 0:02:45]}  Ngf6 {[%clk 0:02:49]} 7. Be2 {[%clk 0:02:34]}  Be7 {[%clk 0:02:46]} 8. O-O {[%clk 0:02:33]}  O-O {[%clk 0:02:46]} 9. Qc2 {[%clk 0:02:29]}  Re8 {[%clk 0:02:43]} 10. Rfd1 {[%clk 0:02:25]}  Qc7 {[%clk 0:02:41]} 11. Rac1 {[%clk 0:02:23]}  Nf8 {[%clk 0:02:29]} 12. h3 {[%clk 0:02:19]}  Bh5 {[%clk 0:02:24]} 13. d5 {[%clk 0:02:13]}  c5 {[%clk 0:02:15]} 14. Rb1 {[%clk 0:02:10]}  N6d7 {[%clk 0:01:58]} 15. a3 {[%clk 0:01:59]}  b6 {[%clk 0:01:53]} 16. b4 {[%clk 0:01:54]}  a6 {[%clk 0:01:47]} 17. bxc5 {[%clk 0:01:50]}  Nxc5 {[%clk 0:01:45]} 18. Rb2 {[%clk 0:01:41]}  Nfd7 {[%clk 0:01:38]} 19. Rdb1 {[%clk 0:01:41]}  h6 {[%clk 0:01:38]} 20. Na4 {[%clk 0:01:26]}  Rab8 {[%clk 0:01:21]} 21. Nxc5 {[%clk 0:01:16]}  Nxc5 {[%clk 0:01:22]} 22. g4 {[%clk 0:01:06]}  Bg6 {[%clk 0:01:21]} 23. Nd2 {[%clk 0:01:06]}  Bg5 {[%clk 0:01:14]} 24. Bxg5 {[%clk 0:00:53]}  hxg5 {[%clk 0:01:15]} 25. f3 {[%clk 0:00:53]}  f6 {[%clk 0:01:09]} 26. Nf1 {[%clk 0:00:52]}  Rb7 {[%clk 0:01:07]} 27. Ne3 {[%clk 0:00:49]}  Reb8 {[%clk 0:01:07]} 28. Kf2 {[%clk 0:00:48]}  Be8 {[%clk 0:01:06]} 29. Qd2 {[%clk 0:00:39]}  Kf7 {[%clk 0:01:03]} 30. Rh1 {[%clk 0:00:34]}  Nd7 {[%clk 0:00:49]} 31. Rhb1 {[%clk 0:00:30]}  Nf8 {[%clk 0:00:45]} 32. Ng2 {[%clk 0:00:20]}  a5 {[%clk 0:00:40]} 33. Kg3 {[%clk 0:00:20]}  Ng6 {[%clk 0:00:38]} 34. Qe3 {[%clk 0:00:19]}  Bd7 {[%clk 0:00:36]} 35. Bf1 {[%clk 0:00:17]}  Nf4 {[%clk 0:00:34]} 36. Qf2 {[%clk 0:00:16]}  Ng6 {[%clk 0:00:32]} 37. h4 {[%clk 0:00:15]}  gxh4+ {[%clk 0:00:30]} 38. Nxh4 {[%clk 0:00:16]}  Ne7 {[%clk 0:00:30]} 39. Qe3 {[%clk 0:00:14]}  Qc5 {[%clk 0:00:19]} 40. Qxc5 {[%clk 0:00:13]}  dxc5 {[%clk 0:00:20]} 41. Bd3 {[%clk 0:00:11]}  Nc8 {[%clk 0:00:20]} 42. Ng2 {[%clk 0:00:11]}  Nd6 {[%clk 0:00:20]} 43. Ne3 {[%clk 0:00:11]}  Ke7 {[%clk 0:00:11]} 44. f4 {[%clk 0:00:06]}  exf4+ {[%clk 0:00:09]} 45. Kxf4 {[%clk 0:00:06]}  Nf7 {[%clk 0:00:10]} 46. Be2 {[%clk 0:00:05]}  Kd6 {[%clk 0:00:08]} 47. Rh1 {[%clk 0:00:04]}  Ne5 {[%clk 0:00:06]} 48. Rh7 {[%clk 0:00:03]}  Be8 {[%clk 0:00:05]} 49. g5 {[%clk 0:00:02]}  fxg5+ {[%clk 0:00:04]} 50. Kxg5 {[%clk 0:00:02]}  g6 {[%clk 0:00:05]} 51. Rxb7 {[%clk 0:00:02]}  Rxb7 {[%clk 0:00:06]} 0-1


[Site "https://www.chess.com"]

[Event "Titled Tuesday Blitz July 26 Late 2022"]
[White "Csonka, Balazs"]
[Black "Romanchuk, Viktor"]
[WhiteFideId "742910"]
[BlackFideId "14109271"]
[WhiteElo "2404"]
[BlackElo "2242"]
[Result "1-0"]
[Round "10"]
[TimeControl "180+1"]
[Date "2022.07.26"]
[WhiteClock "0:01:02"]
[BlackClock "0:01:15"]

1. d4 {[%clk 0:03:00]}  d5 {[%clk 0:02:58]} 2. c4 {[%clk 0:02:57]}  c6 {[%clk 0:02:58]} 3. Nf3 {[%clk 0:02:52]}  Nf6 {[%clk 0:02:58]} 4. Qc2 {[%clk 0:02:52]}  dxc4 {[%clk 0:02:57]} 5. e4 {[%clk 0:02:52]}  b5 {[%clk 0:02:54]} 6. b3 {[%clk 0:02:52]}  cxb3 {[%clk 0:02:53]} 7. axb3 {[%clk 0:02:53]}  e6 {[%clk 0:02:52]} 8. Bd2 {[%clk 0:02:52]}  a5 {[%clk 0:02:49]} 9. Bd3 {[%clk 0:02:46]}  h6 {[%clk 0:02:44]} 10. O-O {[%clk 0:02:41]}  Be7 {[%clk 0:02:44]} 11. Nc3 {[%clk 0:02:13]}  O-O {[%clk 0:02:41]} 12. e5 {[%clk 0:01:55]}  Nd5 {[%clk 0:02:39]} 13. Ne4 {[%clk 0:01:41]}  Qb6 {[%clk 0:02:11]} 14. Qc1 {[%clk 0:01:26]}  Nb4 {[%clk 0:01:38]} 15. Bb1 {[%clk 0:01:23]}  Rd8 {[%clk 0:01:19]} 16. Bxh6 {[%clk 0:01:18]}  Rxd4 {[%clk 0:01:14]} 17. Be3 {[%clk 0:01:07]}  c5 {[%clk 0:01:14]} 18. Bxd4 {[%clk 0:01:02]}  cxd4 {[%clk 0:01:15]} 19. Qxc8+ {[%clk 0:01:02]} 1-0


[Site "https://www.chess.com"]

[Event "Titled Tuesday Blitz July 26 Late 2022"]
[White "D`Arruda, Ricardo D."]
[Black "Estrada Nieto, Julian"]
[WhiteFideId "100692"]
[BlackFideId "5101018"]
[WhiteElo "2407"]
[BlackElo "2252"]
[Result "1-0"]
[Round "10"]
[TimeControl "180+1"]
[Date "2022.07.27"]
[WhiteClock "0:00:32"]
[BlackClock "0:00:53"]

1. d4 {[%clk 0:02:53]}  d5 {[%clk 0:03:00]} 2. Nf3 {[%clk 0:02:51]}  Nf6 {[%clk 0:03:00]} 3. g3 {[%clk 0:02:50]}  c6 {[%clk 0:02:59]} 4. Bg2 {[%clk 0:02:50]}  Bg4 {[%clk 0:02:59]} 5. Ne5 {[%clk 0:02:48]}  Bf5 {[%clk 0:02:58]} 6. O-O {[%clk 0:02:48]}  Nbd7 {[%clk 0:02:58]} 7. Bf4 {[%clk 0:02:45]}  e6 {[%clk 0:02:58]} 8. c4 {[%clk 0:02:43]}  Be7 {[%clk 0:02:58]} 9. Nc3 {[%clk 0:02:43]}  O-O {[%clk 0:02:51]} 10. Qb3 {[%clk 0:02:42]}  Nxe5 {[%clk 0:02:46]} 11. Bxe5 {[%clk 0:02:39]}  Qb6 {[%clk 0:02:45]} 12. c5 {[%clk 0:02:34]}  Qxb3 {[%clk 0:02:44]} 13. axb3 {[%clk 0:02:35]}  a6 {[%clk 0:02:44]} 14. Na4 {[%clk 0:02:27]}  Nd7 {[%clk 0:02:44]} 15. Bf4 {[%clk 0:02:23]}  Bf6 {[%clk 0:02:42]} 16. Bd6 {[%clk 0:02:16]}  Rfe8 {[%clk 0:02:36]} 17. e3 {[%clk 0:02:16]}  e5 {[%clk 0:02:13]} 18. dxe5 {[%clk 0:02:10]}  Nxe5 {[%clk 0:02:13]} 19. Nb6 {[%clk 0:02:06]}  Ra7 {[%clk 0:02:04]} 20. f3 {[%clk 0:01:38]}  Nd7 {[%clk 0:02:03]} 21. e4 {[%clk 0:01:15]}  Be6 {[%clk 0:01:59]} 22. exd5 {[%clk 0:01:07]}  cxd5 {[%clk 0:01:59]} 23. Rad1 {[%clk 0:00:49]}  Nxb6 {[%clk 0:01:48]} 24. cxb6 {[%clk 0:00:50]}  Raa8 {[%clk 0:01:48]} 25. f4 {[%clk 0:00:46]}  Bxb2 {[%clk 0:01:05]} 26. f5 {[%clk 0:00:45]}  Bd7 {[%clk 0:01:05]} 27. Bxd5 {[%clk 0:00:45]}  Bc6 {[%clk 0:00:57]} 28. Bxc6 {[%clk 0:00:45]}  bxc6 {[%clk 0:00:57]} 29. b7 {[%clk 0:00:45]}  Rab8 {[%clk 0:00:55]} 30. Bxb8 {[%clk 0:00:45]}  Rxb8 {[%clk 0:00:56]} 31. Rd7 {[%clk 0:00:43]}  Kf8 {[%clk 0:00:56]} 32. Rfd1 {[%clk 0:00:35]}  Bf6 {[%clk 0:00:56]} 33. Rc7 {[%clk 0:00:32]}  c5 {[%clk 0:00:53]} 34. Rc8+ {[%clk 0:00:32]} 1-0


[Site "https://www.chess.com"]

[Event "Titled Tuesday Blitz July 26 Late 2022"]
[White "Domingo Nunez, Ruben"]
[Black "MacDaddyMac"]
[WhiteFideId "22245570"]
[WhiteElo "2373"]
[BlackElo "2567"]
[Result "1-0"]
[Round "10"]
[TimeControl "180+1"]
[Date "2022.07.26"]
[WhiteClock "0:01:21"]
[BlackClock "0:01:21"]

1. b3 {[%clk 0:03:00]}  b6 {[%clk 0:03:00]} 2. Bb2 {[%clk 0:02:59]}  Bb7 {[%clk 0:03:00]} 3. Nf3 {[%clk 0:02:59]}  Nf6 {[%clk 0:03:01]} 4. g3 {[%clk 0:02:59]}  g6 {[%clk 0:03:01]} 5. Bg2 {[%clk 0:02:59]}  Bg7 {[%clk 0:03:02]} 6. O-O {[%clk 0:03:00]}  O-O {[%clk 0:03:02]} 7. c4 {[%clk 0:03:01]}  e6 {[%clk 0:03:00]} 8. Qc2 {[%clk 0:02:56]}  d6 {[%clk 0:03:01]} 9. Nc3 {[%clk 0:02:57]}  Nbd7 {[%clk 0:03:01]} 10. Rad1 {[%clk 0:02:57]}  Qe7 {[%clk 0:03:01]} 11. d4 {[%clk 0:02:58]}  a6 {[%clk 0:03:02]} 12. e4 {[%clk 0:02:58]}  e5 {[%clk 0:03:01]} 13. Rfe1 {[%clk 0:02:57]}  exd4 {[%clk 0:03:00]} 14. Nd5 {[%clk 0:02:58]}  Nxd5 {[%clk 0:02:47]} 15. exd5 {[%clk 0:02:59]}  Ne5 {[%clk 0:02:39]} 16. Nxd4 {[%clk 0:02:17]}  Qd7 {[%clk 0:02:38]} 17. h3 {[%clk 0:02:11]}  Qd8 {[%clk 0:02:16]} 18. f4 {[%clk 0:01:59]}  Nd7 {[%clk 0:02:16]} 19. Ne6 {[%clk 0:02:00]}  fxe6 {[%clk 0:02:08]} 20. dxe6 {[%clk 0:02:01]}  Bxb2 {[%clk 0:02:08]} 21. e7 {[%clk 0:02:01]}  Bxg2 {[%clk 0:01:42]} 22. exd8=Q {[%clk 0:02:01]}  Raxd8 {[%clk 0:01:42]} 23. Qxb2 {[%clk 0:01:38]}  Bxh3 {[%clk 0:01:42]} 24. Re7 {[%clk 0:01:38]}  Rf7 {[%clk 0:01:42]} 25. Rxf7 {[%clk 0:01:39]}  Kxf7 {[%clk 0:01:43]} 26. Qh2 {[%clk 0:01:39]}  Be6 {[%clk 0:01:29]} 27. Qxh7+ {[%clk 0:01:40]}  Kf8 {[%clk 0:01:29]} 28. Re1 {[%clk 0:01:31]}  Bf7 {[%clk 0:01:21]} 29. Qh4 {[%clk 0:01:21]}  Re8 {[%clk 0:01:21]} 30. Qh8+ {[%clk 0:01:21]} 1-0


[Site "https://www.chess.com"]

[Event "Titled Tuesday Blitz July 26 Late 2022"]
[White "Fishbein, Alexander"]
[Black "Derraugh, Geordie"]
[WhiteFideId "2000377"]
[BlackFideId "2603950"]
[WhiteElo "2410"]
[BlackElo "2116"]
[Result "0-1"]
[Round "10"]
[TimeControl "180+1"]
[Date "2022.07.27"]
[WhiteClock "0:00:02"]
[BlackClock "0:00:14"]

1. d4 {[%clk 0:03:00]}  Nf6 {[%clk 0:02:59]} 2. Bf4 {[%clk 0:02:59]}  g6 {[%clk 0:02:59]} 3. Nc3 {[%clk 0:02:57]}  d5 {[%clk 0:02:58]} 4. Nb5 {[%clk 0:02:56]}  Na6 {[%clk 0:02:58]} 5. e3 {[%clk 0:02:54]}  c6 {[%clk 0:02:56]} 6. Nc3 {[%clk 0:02:46]}  Nc7 {[%clk 0:02:57]} 7. Nf3 {[%clk 0:02:42]}  Bg7 {[%clk 0:02:56]} 8. h4 {[%clk 0:02:40]}  O-O {[%clk 0:02:55]} 9. Be2 {[%clk 0:02:39]}  Bf5 {[%clk 0:02:55]} 10. Be5 {[%clk 0:02:38]}  h5 {[%clk 0:02:50]} 11. Ng5 {[%clk 0:02:37]}  Ng4 {[%clk 0:02:46]} 12. Bxg7 {[%clk 0:02:36]}  Kxg7 {[%clk 0:02:47]} 13. Bxg4 {[%clk 0:02:34]}  Bxg4 {[%clk 0:02:46]} 14. Qd2 {[%clk 0:02:30]}  b5 {[%clk 0:02:35]} 15. f3 {[%clk 0:02:27]}  Bc8 {[%clk 0:02:34]} 16. e4 {[%clk 0:02:26]}  b4 {[%clk 0:02:33]} 17. Ne2 {[%clk 0:02:25]}  f6 {[%clk 0:02:31]} 18. Nh3 {[%clk 0:02:22]}  Qd6 {[%clk 0:02:30]} 19. O-O-O {[%clk 0:02:16]}  dxe4 {[%clk 0:02:30]} 20. fxe4 {[%clk 0:02:15]}  Bg4 {[%clk 0:02:15]} 21. Nf2 {[%clk 0:01:51]}  Bxe2 {[%clk 0:02:14]} 22. Qxe2 {[%clk 0:01:51]}  Nb5 {[%clk 0:02:14]} 23. Qe3 {[%clk 0:01:50]}  Qe6 {[%clk 0:02:09]} 24. Kb1 {[%clk 0:01:44]}  Rfb8 {[%clk 0:02:09]} 25. Nd3 {[%clk 0:01:27]}  Qc4 {[%clk 0:01:57]} 26. Nc5 {[%clk 0:01:20]}  Nc3+ {[%clk 0:01:50]} 27. bxc3 {[%clk 0:01:12]}  bxc3+ {[%clk 0:01:49]} 28. Nb3 {[%clk 0:01:12]}  a5 {[%clk 0:01:49]} 29. Qd3 {[%clk 0:01:04]}  Qb4 {[%clk 0:01:45]} 30. Rh3 {[%clk 0:00:51]}  a4 {[%clk 0:01:42]} 31. Qxc3 {[%clk 0:00:50]}  axb3 {[%clk 0:01:42]} 32. axb3 {[%clk 0:00:44]}  Qa3 {[%clk 0:01:33]} 33. Qb2 {[%clk 0:00:42]}  Qa6 {[%clk 0:01:33]} 34. Rhd3 {[%clk 0:00:30]}  Rb5 {[%clk 0:01:29]} 35. Kc1 {[%clk 0:00:21]}  Ra5 {[%clk 0:01:24]} 36. Kd2 {[%clk 0:00:21]}  Qc8 {[%clk 0:01:23]} 37. Rf3 {[%clk 0:00:17]}  Qg4 {[%clk 0:01:22]} 38. Re3 {[%clk 0:00:12]}  Qxh4 {[%clk 0:01:11]} 39. Rde1 {[%clk 0:00:11]}  Rg5 {[%clk 0:01:05]} 40. R1e2 {[%clk 0:00:11]}  Qh1 {[%clk 0:01:04]} 41. Qc1 {[%clk 0:00:10]}  Qh2 {[%clk 0:01:00]} 42. Qf1 {[%clk 0:00:10]}  Qd6 {[%clk 0:00:57]} 43. Rd3 {[%clk 0:00:09]}  Qb4+ {[%clk 0:00:53]} 44. Ke3 {[%clk 0:00:09]}  Rg3+ {[%clk 0:00:45]} 45. Kf2 {[%clk 0:00:09]}  Rxd3 {[%clk 0:00:45]} 46. cxd3 {[%clk 0:00:09]}  Qxb3 {[%clk 0:00:46]} 47. Ke3 {[%clk 0:00:08]}  Qb6 {[%clk 0:00:33]} 48. Qc1 {[%clk 0:00:07]}  e5 {[%clk 0:00:31]} 49. Qc5 {[%clk 0:00:05]}  exd4+ {[%clk 0:00:31]} 50. Qxd4 {[%clk 0:00:05]}  Qc7 {[%clk 0:00:26]} 51. Kf2 {[%clk 0:00:05]}  Qf4+ {[%clk 0:00:25]} 52. Kg1 {[%clk 0:00:04]}  Rb8 {[%clk 0:00:25]} 53. Re1 {[%clk 0:00:03]}  Qg3 {[%clk 0:00:18]} 54. Rf1 {[%clk 0:00:03]}  Rf8 {[%clk 0:00:16]} 55. Qd7+ {[%clk 0:00:03]}  Rf7 {[%clk 0:00:16]} 56. Qd4 {[%clk 0:00:03]}  h4 {[%clk 0:00:16]} 57. Rf3 {[%clk 0:00:03]}  Qe1+ {[%clk 0:00:15]} 58. Kh2 {[%clk 0:00:03]}  g5 {[%clk 0:00:15]} 59. e5 {[%clk 0:00:03]}  Qxe5+ {[%clk 0:00:14]} 60. Qxe5 {[%clk 0:00:03]}  fxe5 {[%clk 0:00:15]} 61. Re3 {[%clk 0:00:04]}  Re7 {[%clk 0:00:15]} 62. d4 {[%clk 0:00:03]}  e4 {[%clk 0:00:15]} 63. Rc3 {[%clk 0:00:03]}  Re6 {[%clk 0:00:15]} 64. Kg1 {[%clk 0:00:03]}  Kf6 {[%clk 0:00:16]} 65. Kf2 {[%clk 0:00:03]}  Kf5 {[%clk 0:00:16]} 66. Ke3 {[%clk 0:00:03]}  g4 {[%clk 0:00:16]} 67. Rc5+ {[%clk 0:00:04]}  Kg6 {[%clk 0:00:15]} 68. Ra5 {[%clk 0:00:03]}  h3 {[%clk 0:00:14]} 69. gxh3 {[%clk 0:00:03]}  gxh3 {[%clk 0:00:15]} 70. Ra2 {[%clk 0:00:03]}  Kg5 {[%clk 0:00:15]} 71. Ra1 {[%clk 0:00:03]}  Kh4 {[%clk 0:00:15]} 72. Rg1 {[%clk 0:00:02]}  h2 {[%clk 0:00:15]} 73. Rg8 {[%clk 0:00:02]}  Rh6 {[%clk 0:00:14]} 0-1


[Site "https://www.chess.com"]